Cogmind - Beta 12 @@@ ROGUE MODE // 2023.11.30 @ 13:02:51 Player: Dosh Result: Destroyed by as-08082 with Assembled Heavy Rifle Performance ------------- Evolutions (0) 0 Regions Visited (2) 400 Robots Destroyed (14) 70 Value Destroyed (456) 456 Prototype IDs (2) 40 Alien Tech Used (0) 0 Bonus (0) 0 TOTAL SCORE: 966 Bonus ------- None Cogmind --------- Core Integrity 0/250 Matter 295/300 Energy 125/125 System Corruption 2% Temperature Cool (0) Movement Rolling (140) Ox4 Location -10/Mines Parts ------- > --- POWER (1) -------- Light Ion Engine > --- PROPULSION (2) --- Wheel Wheel > --- UTILITY (2) ------ Huge Storage Unit Targeting Computer > --- WEAPON (2) ------- Small Laser > --- INVENTORY (25) --- Ion Engine Light Nuclear Core Improved Heat Sink Small Storage Unit Huge Storage Unit Structural Scanner Visual Processing Unit Hacking Suite Small Laser Peak State ------------ > --- POWER ------------ Light Nuclear Core > --- PROPULSION ------- Light Treads Light Treads > --- UTILITY ---------- Huge Storage Unit Targeting Computer > --- WEAPON ----------- Light Assault Rifle Light Assault Rifle > --- INVENTORY -------- Ion Engine Light Ion Engine Wheel Wheel Improved Heat Sink Small Storage Unit Structural Scanner Small Laser [Rating: 10] Favorites ----------- Power Light Nuclear Core Engine Ion Engine Power Core Light Nuclear Core Propulsion Light Treads Treads Light Treads Wheel Wheel Utility Huge Storage Unit Storage Huge Storage Unit Processor Targeting Computer Weapon Light Assault Rifle Energy Gun EM Shotgun Ballistic Gun Light Assault Rifle Build | -11 -10 -10 ------- Run | Jun Mat Min Slots Evolved . | . . . Power . | . . . Propulsion . | . . . Utility . | . . . Weapon . | . . . Parts Attached 16 | 6 5 5 Power 4 | 1 2 1 Engine 3 | 1 1 1 Core 1 | . 1 . Reactor . | . . . Propulsion 5 | 2 1 2 Treads 3 | 2 1 . Leg . | . . . Wheel 2 | . . 2 Hover . | . . . Flight . | . . . Utility 3 | 1 2 . Device . | . . . Storage 2 | 1 1 . Processor 1 | . 1 . Hackware . | . . . Protection . | . . . Artifact . | . . . Weapon 4 | 2 . 2 Energy Gun 2 | . . 2 Energy Cannon . | . . . Ballistic Gun 2 | 2 . . Ballistic Cannon . | . . . Launcher . | . . . Special Weapon . | . . . Impact Weapon . | . . . Slashing Weapon . | . . . Piercing Weapon . | . . . Special Melee Weapon . | . . . Unidentified Prototypes . | . . . Parts Lost 7 | . 1 6 Power 2 | . 1 1 Propulsion 2 | . . 2 Utility . | . . . Weapon 3 | . . 3 Highest Loss Streak 5 | . 1 5 To Critical Strikes . | . . . Average Slot Usage (%) 94 | . 94 93 Engine 6 | . 5 11 Core 7 | . 8 . Treads 25 | . 27 2 Wheel 1 | . . 23 Storage 14 | . 14 14 Processor 9 | . 9 14 Energy Gun 1 | . . 22 Ballistic Gun 26 | . 28 3 Naked Turns . | . . . Heaviest Build 87 | 12 87 87 Greatest Support 40 | 40 40 20 Greatest Overweight (x) 4 | . 2 4 Average Overweight (x) 1 | . 1 4 Largest Inventory Capacity 25 | 8 25 25 Average Capacity 22 | 7 23 25 Most Carried 12 | 4 12 12 Average Carried 8 | 2 8 9 Final Capacity 25 | 8 25 25 Final Carried 12 | 4 12 9 Class Distribution -------------------- 100% | Mutant Dominant Class ---------------- Mutant | -10/Materials Mutant | -10/Mines Resources | -11 -10 -10 ----------- Run | Jun Mat Min Matter Collected 533 | 224 235 74 Remotely . | . . . Salvage Created 540 | . 425 115 Parts 38 | . 33 5 Haulers Intercepted . | . . . Recyclers Shooed 1 | . 1 . Parts Field Recycled . | . . . Retrieved Matter . | . . . Parts Self-Destructed . | . . . Prevented . | . . . Kills | -11 -10 -10 ------- Run | Jun Mat Min Combat Hostiles Destroyed 11 | . 8 3 Guns 11 | . 8 3 Classes Destroyed 4 | . 3 1 Operator 1 | . 1 . Watcher 3 | . 3 . Grunt 10 | . 8 2 Assembled 1 | . . 1 Best Kill Streak 2 | . 2 2 Combat Bots Only 2 | . 2 2 Max Kills in Single Turn 1 | . 1 1 Gunslinging . | . . . Exploded . | . . . Melee . | . . . Uniques/NPCs Destroyed . | . . . Combat | -11 -10 -10 -------- Run | Jun Mat Min Damage Taken 1103 | . 717 386 Core 265 | . 174 91 Absorbed by Shields . | . . . Regen/Repaired (Parts) 119 | . 119 . Core Remaining (%) 100 | 100 . . Volleys Fired 93 | . 71 22 Largest 2 | . 2 2 Hottest 85 | . 40 85 Shots Fired 179 | . 143 36 Gun 179 | . 143 36 Cannon . | . . . Launcher . | . . . Special . | . . . Kinetic 162 | . 143 19 Thermal 9 | . . 9 Explosive . | . . . Electromagnetic 8 | . . 8 Robot Hit Streak 10 | . 6 10 Robot Miss Streak 5 | . 4 5 Penetration Max . | . . . Secondary Targets . | . . . Shots Hit Robots 120 | . 94 26 Core Hits 44 | . 34 10 Critical Kills 1 | . 1 . Critical Parts Destroyed . | . . . Critical Strikes 1 | . 1 . Destroy 1 | . 1 . Melee Attacks . | . . . Impact . | . . . Slashing . | . . . Piercing . | . . . Sneak Attacks . | . . . Combat Hostiles . | . . . Follow-up Attacks . | . . . Damage Inflicted 1022 | . 758 264 Guns 1015 | . 751 264 Cannons . | . . . Explosions . | . . . Melee . | . . . Ramming 7 | . 7 . Kinetic 889 | . 751 138 Thermal 43 | . . 43 Explosive . | . . . Electromagnetic 83 | . . 83 Impact . | . . . Slashing . | . . . Piercing . | . . . Highest Corruption 2 | . 2 2 Average Corruption 2 | . 2 2 Corruption Purged . | . . . Corruption Blocked . | . . . Effects 22 | . 19 3 Message Errors 4 | . 4 . Matter Fused 6 | . 5 1 Heat Flow Errors 2 | . 1 1 Energy Discharges 1 | . 1 . Data Loss (minor) 5 | . 5 . Data Loss (major) 1 | . . 1 Misfires 2 | . 2 . Weapon Failures 1 | . 1 . Overload Shots . | . . . Overflow Damage . | . . . Projectiles . | . . . Explosions . | . . . Melee . | . . . Knockbacks . | . . . Impact . | . . . Kinetic . | . . . Secondary . | . . . Self-Inflicted Damage . | . . . Shots . | . . . Rammed 2 | . 2 . Targets Rammed 2 | . 2 . Kicked . | . . . Crushed . | . . . Highest Temperature 268 | . 268 244 Average Temperature 43 | . 24 92 Received Heat Transfer 625 | . 366 259 Siege Activations . | . . . Robots Corrupted . | . . . Combat Hostiles . | . . . Parts Fried . | . . . Impact Corruptions . | . . . Robots Melted . | . . . Combat Hostiles . | . . . Parts Melted . | . . . Heat Transferred 100 | . . 100 Parts Sabotaged . | . . . Parts Stolen . | . . . Parts Stripped . | . . . Power Chain Reactions . | . . . Missiles Intercepted . | . . . Alert | -11 -10 -10 ------- Run | Jun Mat Min Peak Influence 150 | . 150 55 Initial . | . . . Average 27 | . 27 41 Maximum Alert Level . | . . . Low Security (%) 100 | 100 100 100 Level 1 . | . . . Level 2 . | . . . Level 3 . | . . . Level 4 . | . . . Level 5 . | . . . High Security . | . . . Max Security . | . . . Squads Dispatched 2 | . 2 . Investigation . | . . . Extermination . | . . . Reinforcement 2 | . 2 . Assault . | . . . Garrison . | . . . Intercept . | . . . Searches Triggered . | . . . Construction Impeded . | . . . Haulers Reinforced . | . . . Active Scanning Responses . | . . . Cargo Convoy Interrupts . | . . . Stealth | -11 -10 -10 --------- Run | Jun Mat Min Distress Signals 1 | . . 1 Communications Jammed . | . . . Distress Signals . | . . . Times Spotted 29 | . 23 6 Peak Tracking Total 3 | . 3 3 Tactical Retreats . | . . . Traps | -11 -10 -10 ------- Run | Jun Mat Min Traps Triggered 2 | . 2 . Indirectly . | . . . Trap Hack Attempts . | . . . Triggered . | . . . Disarmed . | . . . Reprogrammed . | . . . Reused . | . . . Traps Extracted . | . . . Installed . | . . . Triggered . | . . . Machines | -11 -10 -10 ---------- Run | Jun Mat Min Machines Disabled . | . . . Max in Single Turn . | . . . Machines Repaired . | . . . Machines Sabotaged . | . . . Overloaded Fab Kills . | . . . Hacking | -11 -10 -10 --------- Run | Jun Mat Min Machines Accessed 3 | . 3 . Terminals 2 | . 2 . Fabricators . | . . . Repair Stations 1 | . 1 . Recycling Units . | . . . Scanalyzers . | . . . Garrison Access . | . . . Total Hacks 7 | . 7 . Successful 6 | . 6 . Failed 1 | . 1 . Catastrophic . | . . . Database Lockouts . | . . . Manual 1 | . 1 . Terminals 5 | . 5 . Fabricators . | . . . Repair Stations 2 | . 2 . Recycling Units . | . . . Scanalyzers . | . . . Garrison Access . | . . . Terminal Hacks 4 | . 4 . Prototype ID Bank 1 | . 1 . Emergency Access Points 1 | . 1 . Alert Level 1 | . 1 . Locate Traps 1 | . 1 . Fabricator Hacks . | . . . Repair Station Hacks 2 | . 2 . Scan Component 1 | . 1 . Repair 1 | . 1 . Recycling Unit Hacks . | . . . Scanalyzer . | . . . Garrison Access Hacks . | . . . Unauthorized Hacks . | . . . Terminals . | . . . Fabricators . | . . . Repair Stations . | . . . Recycling Units . | . . . Scanalyzers . | . . . Garrison Access . | . . . Data Cores Recovered . | . . . Used . | . . . Hacking Detections 1 | . 1 . Full Trace Events . | . . . Feedback Events . | . . . Feedback Blocked . | . . . Robot Schematics Acquired . | . . . Robots Built . | . . . Authchips . | . . . Time . | . . . Total Robot Build Rating . | . . . Part Schematics Acquired . | . . . Parts Built . | . . . Authchips . | . . . Time . | . . . Total Part Build Rating . | . . . Parts Repaired 1 | . 1 . Time 26 | . 26 . Parts Recycled . | . . . Recycled Matter . | . . . Retrieved Matter . | . . . Retrieved Components . | . . . Parts Scanalyzed . | . . . Part Schematics Acquired . | . . . Parts Damaged . | . . . Bothacking | -11 -10 -10 ------------ Run | Jun Mat Min Used RIF Installer . | . . . Robots Hacked . | . . . Non-combat . | . . . Combat . | . . . Robot Hacks Applied . | . . . Relay Couplers Released . | . . . Fabnet Peak Effective % . | . . . Robots Rewired . | . . . Allies Hacked . | . . . Hacks Repelled . | . . . Allies | -11 -10 -10 -------- Run | Jun Mat Min Total Allies . | . . . Largest Group . | . . . Highest-Rated Group . | . . . Highest-Rated Ally . | . . . Total Orders . | . . . Ally Attacks . | . . . Total Damage . | . . . Kills . | . . . Allies Corrupted . | . . . Allies Melted . | . . . Intel | -11 -10 -10 ------- Run | Jun Mat Min Robot Analysis Total . | . . . Derelict Logs Recovered 1 | . . 1 Drone Launches . | . . . Drone Recoveries . | . . . Exploration | -11 -10 -10 ------------- Run | Jun Mat Min Turns Passed 2682 | 65 2428 189 Spaces Moved 876 | 36 748 92 Core 4 | 4 . . Treads 780 | 32 748 . Legs . | . . . Wheels 92 | . . 92 Hover . | . . . Flight . | . . . Fastest Speed 50 | 50 160 140 Average Speed 270 | 147 292 140 Slowest Speed 320 | 160 320 140 Overloaded Moves . | . . . Propulsion Burnouts . | . . . Robots Hopped . | . . . Cave-ins Triggered . | . . . Exploration Rate (%) 46 | 4 99 35 Regions Visited 2 Branch Regions 1 Pre-discovered Areas . | . . . Known Exits Taken . | . . . Unknown Exits Taken 2 | 1 1 . Scrap Searched . | . . . Spaces Dug . | . . . Terrain Destroyed . | . . . Melee . | . . . Projectile . | . . . AOE . | . . . Terrain Rammed . | . . . Walls Destroyed . | . . . Machines Disabled . | . . . Actions | -11 -10 -10 --------- Run | Jun Mat Min Total 1036 | 45 871 120 Wait 38 | . 38 . Move 874 | 35 747 92 Hop . | . . . Pick Up 12 | 4 7 1 Fast Attach 10 | 6 3 1 Attach 5 | . 1 4 Detach 1 | . 1 . Swap 1 | . 1 . Drop . | . . . Fire 93 | . 71 22 Melee . | . . . Ram . | . . . Kick . | . . . Crush 2 | . 2 . Escape Stasis . | . . . Rewire . | . . . Trap . | . . . Miscellaneous . | . . . Route ------- -11/Junkyard -10/Materials (discovered 5 exits: [*Mat x3] / [*Min x2]) -10/Mines History --------- Turn | Location | Event 13 | -11/Junkyard | Discovered new exit (range 16) 66 | -11/Junkyard | Entered Materials 183 | -10/Materials | Discovered new exit (range 12) 314 | -10/Materials | Build established: Mutant 414 | -10/Materials | Discovered new exit (range 8) 892 | -10/Materials | Repaired Lgt. Treads 1088 | -10/Materials | Discovered new exit (range 12) 1091 | -10/Materials | Discovered new exit (range 14) 1390 | -10/Materials | Core integrity fell below 50% 2049 | -10/Materials | Discovered new exit (range 15) 2494 | -10/Materials | Entered Mines 2513 | -10/Mines | Core integrity fell below 20% 2551 | -10/Mines | Lost 5 parts (1p2n2w) 2555 | -10/Mines | Learned 8 Materials zone layouts 2559 | -10/Mines | Assembled infested the area 2683 | -10/Mines | Destroyed by as-08082 with Assembled Heavy Rifle Last Messages --------------- 02524_ G-34 Mercenary destroyed. 02529_ System corrupted: Matter fused (-10). 02531_ Acquired 46 matter. 02534_ Acquired 28 matter. 02537_ Acquired Lgt. Nuclear Core. 02542_ Acquired Sml. Laser. 02549_ System corrupted: Heat flow error (+167). 02555_ Acquired derelict log, extracted data. Data stored: Materials zone layouts (x8). 02559_ ALERT: Infestation in the mines, dispatching Demolisher response squad. 02587_ Critical hit (Burn: +80). 02598_ Destroyed Asb. F-torch. 02601_ as-23228 destroyed. 02605_ System corrupted: Substantial component data lost. 02621_ T-07 Excavator is excavating. 02675_ K-01 Serf suffers critical hit (Destroy). 02675_ K-01 Serf destroyed. 02682_ EM Shotgun destroyed. 02682_ Destroyed Asb. Hover Unit. Map ----- +----------------------------------------------------+ | ????????????????????????????????????????????? | | ????????????????????????????????????????????? | | ????????????????????????????????????????????? | | ????????????????????????????????????????????? | | ????????????????????????????????????????????? | | ????????????????????????????????????????????? | | ????????????????????????????????????????????? | | ????????????????????????????????????????????? | | ????????????????????????????????????????????? | | ????????????????????????????????????????????? | | ????????????????????????????????????????????? | | ????????????????????????????????????????????? | | ????????????????????????????????????????????? | | ????????????????????????????????????????????? | | ????????????????????????????????????????????? | | ???????????? ???????????????????????????????? | | ????????????? ?????????????????????????????? | | ?????????????? ????????????????????????????? | | ??????????? ??# #??????????????????????????? | | ??????????? # ?????????????????????????? | | ????????????% a ????????????????????????? | | ?????????????## a % ???????????????????????? | | ?????????????# ##????????????????????? | | ?????????????# " ##??????????????????? | | ?????????????# ##?????????????????? | | ?????????????# @#######???????????? | | ?????????????# * ##??????????? | | ?????????????## !%= #??????????? | | ??????????????# | #??????????? | | ??????????????# ##?????????? | | ??????????????# ##????????? | | ?????????????# #????????? | | ????????????# ## #????????? | | ???????????? #### #????????? | | ????????????? ##??## ######???? | | ?????????????## ##????## ## ##??? | | ??????????????## #???????# #??? | | ???????????????## ???????## #??? | | ????????????????# #???????# ##??? | | ?????????? ????## #???????# ###???? | | ??????????? ### ##?????## ##?????? | | ???????????? ####### #??????? | | ??????????????? ## #??????? | | ?????????????????# #??????? | | ?????????????????# ##??????? | | ?????????????????# ##??????? | | ??#??????????????## ## ##?????? | | ## ???????????????##% #### #?????? | | # ????????????????# #??### ##????? | | ???????????????## #????#### #????? | +----------------------------------------------------+ Best States ------------- Heat Dissipation 25 Energy Generation 14 Energy Capacity 250 Matter Stores 300 Matter Capacity 300 Sight Range 16 Terrain Scan Density 10 Evasion (%) 40 Targeting Accuracy 5 Recoil Reduction 2 Item Schematics ----------------- None Robot Schematics ------------------ None Fabricated ------------ Nothing Alien Tech Used ----------------- None Achievements -------------- None Challenges ------------ None Game ------ Seed WardroneOpticalCharger Manual? 0 Play Time 00:07:47 Cumulative 31.2 hours Start 2023.11.30 @ 12:44:52 End 2023.11.30 @ 13:02:51 Sessions 1 Manual Loads 0 Difficulty Rogue Special Mode None Game No. 58 Rogue 58 Adventurer 0 Explorer 0 Win Type - Total 0 Types 0/0/0/0/0/0/0/0/0 Lore% 25 Gallery% 30 Achievement% 28 Wizard Run 0 Options --------- ASCII 0 Keyboard 1 Movement Numpad Keybinds 0 Fullscreen 2 Font 18/SmallcapsGlow Map View 76x50 Tactical HUD 1 Map Filters NONE Filters NONE Steam 1 RUN: a3cb402b-e7c4-468b-b930-6faa8872bd2e